fUSD/lending_fUSD_20251123
["ID","MTS","AMOUNT","RATE_DAILY","PERIOD"]
[394684152,1763878246050,-692.99999799,0.00036219,2]
[394684153,1763878246062,-409.55999997,0.00036219,2]
[394684154,1763878246087,-50.23754826,0.00036219,2]
[394684155,1763878246097,-309.38375382,0.000368,30]
[394684157,1763878246114,-428.14468468,0.000368,30]
[394684171,1763878387581,18936.89786836,0.000167,2]
[394684172,1763878625223,-277.77072377,0.00016699,2]
[394684173,1763878625251,-500.0,0.00016699,2]
[394684174,1763878625277,-500.0,0.00016699,2]
[394684175,1763878625303,-301.32765645,0.00016699,2]
[394684176,1763878625328,-500.0,0.00016699,2]
[394684177,1763878625510,-500.0,0.00016699,2]
[394684178,1763878625536,-500.0,0.00016699,2]
[394684179,1763878625562,-500.0,0.00016699,2]
[394684180,1763878625588,-500.0,0.00016699,2]
[394684181,1763878625613,-500.0,0.00016699,2]
[394684182,1763878625639,-500.0,0.00016699,2]
[394684183,1763878625664,-500.0,0.00016699,2]
[394684184,1763878625691,-500.0,0.00016699,2]
[394684185,1763878625716,-500.0,0.00016699,2]
[394684186,1763878625741,-500.0,0.00016699,2]
[394684187,1763878625767,-500.0,0.00016699,2]
[394684188,1763878625794,-500.0,0.00016699,2]
[394684189,1763878625820,-500.0,0.00016699,2]
[394684190,1763878625842,-500.0,0.00016699,2]
[394684191,1763878625863,-161.73479055,0.00016699,2]
[394684192,1763878638860,500.0,0.00016699,2]
[394684193,1763878638910,500.0,0.00016699,2]
[394684194,1763878638965,564.04750199,0.00016699,2]
[394684195,1763878651840,-9359.86932724,0.000167,2]
[394684212,1763879431696,-163.77,0.00016234,2]
[394684213,1763879431707,-1200.0,0.00016599,2]
[394684214,1763879431717,-300.0,0.00016599,2]
[394684216,1763879431727,-300.0,0.00016599,2]
[394684218,1763879431736,-14620.463,0.000166,2]
[394684221,1763879431746,-303.0,0.000166,2]
[394684223,1763879431760,-596.15279539,0.00016699,2]
[394684224,1763879431770,-500.0,0.00016699,2]
[394684225,1763879431779,-438.4759563,0.00016699,2]
[394684226,1763879431788,-477.28801235,0.00016699,2]
[394684227,1763879431798,-500.0,0.00016699,2]
[394684228,1763879431807,-500.0,0.00016699,2]
[394684229,1763879431816,-161.73479053,0.00016699,2]
[394684230,1763879431826,-500.0,0.00016799,2]
[394684231,1763879431835,-500.0,0.00016799,2]
[394684232,1763879431844,-2550.48622662,0.000169,2]
[394684233,1763879431868,-271.90586894,0.000169,2]
[394684241,1763879432123,-1736.55047373,0.000169,2]
[394684248,1763879432195,-1812.20113658,0.000169,2]
[394684249,1763879432233,-523.0,0.000169,2]
[394684328,1763879439870,-3416.96187452,0.000169,2]
[394684329,1763879439882,-1446.41958768,0.000169,2]
[394684330,1763879439945,-413.4160215,0.000169,2]
[394684357,1763879443545,-782.6182949,0.000169,2]
[394684359,1763879443557,-1243.86456691,0.000169,2]
[394684361,1763879443568,-363.49653657,0.000169,2]
[394684362,1763879443577,-4301.91060867,0.00017,2]
[394684365,1763879443608,-40850.01302794,0.00017,2]
[394684375,1763879444511,-3024.05229435,0.00017,2]
[394684376,1763879444523,-3592.22917282,0.00017,2]
[394684378,1763879444532,-500.0,0.00017,2]
[394684380,1763879444541,-500.0,0.00017,2]
[394684382,1763879444553,-500.0,0.00017,2]
[394684384,1763879444562,-500.0,0.00017,2]
[394684386,1763879444571,-1000.0,0.00017548,2]
[394684388,1763879444581,-508.95332084,0.00017548,2]
[394684390,1763879444590,-1000.0,0.00017548,2]
[394684392,1763879444599,-154.81537229,0.00017548,2]
[394684394,1763879444608,-1500.0,0.00018096,2]
[394684396,1763879444617,-556.70208465,0.00018096,2]
[394684398,1763879444627,-987.0,0.00018228,2]
[394684400,1763879444636,-157.92533724,0.00018234,2]
[394684402,1763879444646,-250.0,0.00018368,2]
[394684404,1763879444655,-7032.00412373,0.00019,2]
[394684406,1763879444665,-864.1693032,0.00019,2]
[394684408,1763879444675,-1862.48871637,0.00021,5]
[394684410,1763879444684,-1186.77863427,0.00023487,2]
[394684412,1763879444693,-161.73479053,0.00024766,2]
[394684414,1763879444703,-340.13376311,0.00028,2]
[394684416,1763879444713,-3307.1656505,0.00028169,2]
[394684418,1763879444722,-2473.5512491,0.00028169,2]
[394684420,1763879444733,-535.49238109,0.00029488,2]
[394684422,1763879444743,-157.92533724,0.00029567,15]
[394684424,1763879444752,-535.49238103,0.00030645,2]
[394684426,1763879444762,-166.66,0.00031079,30]
[394684428,1763879444771,-166.66,0.00031734,30]
[394684430,1763879444780,-535.49238103,0.00031802,2]
[394684432,1763879444789,-166.66,0.00032388,30]
[394684434,1763879444800,-164.6540823,0.00032598,2]
[394684435,1763879444808,-5000.0,0.00032744,2]
[394684436,1763879444818,-161.73479053,0.00032833,2]
[394684437,1763879444828,-535.49238103,0.00032959,2]
[394684438,1763879444839,-166.66,0.00033042,30]
[394684439,1763879444849,-500.0,0.00033423,8]
[394684440,1763879444859,-500.0,0.00033423,8]
[394684441,1763879444867,-166.66,0.00033696,30]
[394684442,1763879444876,-535.49238103,0.00034116,2]
[394684443,1763879444886,-354.266,0.00034218,38]
[394684444,1763879444898,-166.66,0.00034351,30]
[394684445,1763879444908,-150.0,0.00034496,7]
[394684446,1763879444918,-150.0,0.00034496,7]
[394684447,1763879444928,-150.0,0.00034496,7]
[394684448,1763879444937,-239.41,0.00034825,2]
[394684449,1763879444947,-535.49238103,0.00035272,2]
[394684450,1763879444956,-181.67,0.00035607,120]
[394684451,1763879444966,-150.0,0.00035809,2]
[394684452,1763879444976,-500.0,0.00035809,2]
[394684453,1763879444986,-883.64,0.00035914,5]
[394684454,1763879444995,-150.0,0.00035946,2]
[394684455,1763879445004,-500.0,0.00035946,2]
[394684456,1763879445014,-211.97285969,0.00036,60]
[394684457,1763879445023,-2000.0,0.00036,2]
[394684458,1763879445032,-500.0,0.0003607,5]
[394684459,1763879445042,-200.0,0.00036083,2]
[394684460,1763879445051,-640.20821005,0.00036083,2]
[394684461,1763879445060,-858.55,0.00036124,5]
[394684462,1763879445070,-479.01,0.00036219,2]
[394684463,1763879445080,-479.01,0.00036219,2]
[394684464,1763879445089,-479.01,0.00036219,2]
[394684465,1763879445098,-479.01,0.00036219,2]
[394684466,1763879445107,-479.01,0.00036219,2]
[394684467,1763879445117,-877.05,0.00036402,5]
[394684468,1763879445126,-535.49238103,0.00036429,2]
[394684469,1763879445137,-466.54756709,0.00036513,2]
[394684470,1763879445148,-206.41741739,0.00036513,2]
[394684471,1763879445157,-150.0,0.00036513,2]
[394684472,1763879445167,-150.0,0.00036513,2]
[394684473,1763879445176,-150.0,0.00036513,2]
[394684474,1763879445185,-150.0,0.00036513,2]
[394684475,1763879445194,-202.74418754,0.00036513,2]
[394684476,1763879445204,-150.0,0.00036513,2]
[394684477,1763879445213,-150.0,0.00036513,2]
[394684478,1763879445223,-150.0,0.00036513,2]
[394684479,1763879445232,-153.71357207,0.00036513,2]
[394684480,1763879445241,-500.0,0.00036513,2]
[394684481,1763879445251,-150.0,0.00036513,2]
[394684482,1763879445260,-150.0,0.00036513,2]
[394684483,1763879445269,-500.0,0.00036513,2]
[394684484,1763879445278,-500.0,0.00036513,2]
[394684485,1763879445287,-506.83823373,0.0003652,30]
[394684486,1763879445297,-479.01,0.00036641,2]
[394684488,1763879445306,-1402.1,0.00036641,2]
[394684490,1763879445315,-207.71038414,0.0003665,2]
[394684492,1763879445325,-212.37401104,0.0003665,2]
[394684494,1763879445333,-150.0,0.0003665,2]
[394684496,1763879445342,-150.0,0.0003665,2]
[394684497,1763879445352,-150.0,0.0003665,2]
[394684498,1763879445362,-150.0,0.0003665,2]
[394684499,1763879445371,-150.0,0.0003665,2]
[394684500,1763879445381,-500.0,0.0003665,2]
[394684501,1763879445390,-150.0,0.0003665,2]
[394684502,1763879445400,-150.0,0.0003665,2]
[394684503,1763879445409,-871.86,0.00036751,5]
[394684504,1763879445419,-205.90777453,0.00036787,2]
[394684505,1763879445428,-264.01132078,0.00036787,2]
[394684506,1763879445438,-255.10985574,0.00036787,2]
[394684507,1763879445447,-188.0,0.00036787,2]
[394684508,1763879445457,-150.0,0.00036787,2]
[394684509,1763879445470,-500.0,0.00036787,2]
[394684510,1763879445479,-150.0,0.00036787,2]
[394684511,1763879445489,-26983.81,0.00036861,2]
[394684512,1763879445499,-151.0,0.00036861,31]
[394684513,1763879445510,-155.00725,0.00036861,30]
[394684514,1763879445519,-151.0,0.00036861,31]
[394684515,1763879445528,-155.00725,0.00036861,30]
[394684516,1763879445539,-155.00725,0.00036861,30]
[394684517,1763879445549,-155.00725,0.00036861,30]
[394684518,1763879445559,-506.96402456,0.00036918,8]
[394684519,1763879445568,-500.0,0.00036918,8]
[394684520,1763879445579,-300.0,0.00036918,10]
[394684521,1763879445588,-500.0,0.00036918,8]
[394684522,1763879445597,-64573.98183746,0.00036919,2]
[394684524,1763879446031,-500.0,0.00036919,2]
[394684525,1763879446042,-5880.68473781,0.00036919,2]
[394684526,1763879446072,-3326.22136049,0.00036919,2]
[394684527,1763879446120,-813.94100349,0.00036919,2]
[394684528,1763879446131,-23363.29468143,0.00036919,2]
[394684538,1763879762992,-500.0,0.00016599,2]
[394684539,1763879763020,-500.0,0.00016599,2]
[394684540,1763879763047,-1750.0,0.000166,2]
[394684541,1763879796823,-450.0,0.00016599,2]
[394684545,1763879927983,499.97,0.00013699,2]
[394684555,1763880330102,-164.08849824,0.00016599,2]
[394684556,1763880330125,-249.99365142,0.00016599,2]
[394684557,1763880330146,-303.0,0.00016599,2]
[394684558,1763880330171,-167.24964414,0.00016599,2]
[394684585,1763880632013,-477.97880591,0.000165,2]
[394684586,1763880632025,-1342.64096061,0.000165,2]
[394684587,1763880632036,-298.1025574,0.000165,2]
[394684588,1763880632051,-685.73001,0.000165,2]
[394684589,1763880632122,-344.81,0.000165,2]
[394684590,1763880632133,-1895.5,0.000165,2]
[394684591,1763880632144,-1001.94209764,0.000165,2]
[394684592,1763880632154,-3124.78462949,0.000165,2]
[394684593,1763880632191,-31750.82543895,0.000165,2]
[394684594,1763880632200,-301.0,0.000165,2]
[394684595,1763880632210,-262.97504295,0.00016599,2]
[394684596,1763880632219,-500.0,0.00016599,2]
[394684597,1763880632229,-195.0,0.00016599,2]
[394684598,1763880632239,-250.0,0.000166,2]
[394684599,1763880632249,-428.36785,0.00016699,2]
[394684600,1763880632258,-250.0,0.00017,2]
[394684601,1763880632267,-157.21893183,0.00017617,2]
[394684602,1763880632276,-195.0,0.00018259,2]
[394684603,1763880632286,-160.00412937,0.00019,2]
[394684604,1763880632295,-262.97504292,0.00019188,2]
[394684605,1763880632305,-503.2,0.0002,2]
[394684606,1763880632314,-499.97,0.00020187,2]
[394684607,1763880632324,-167.24964411,0.00021459,2]
[394684608,1763880632333,-262.97504292,0.00021777,2]
[394684609,1763880632342,-2161.8,0.00024174,2]
[394684610,1763880632352,-262.97504292,0.00024366,2]
[394684611,1763880632362,-1521.5438367,0.000248,2]
[394684612,1763880632370,-167.24964411,0.00026319,2]
[394684613,1763880632380,-499.97,0.00026676,2]
[394684614,1763880632389,-262.97504292,0.00026955,2]
[394684615,1763880632399,-262.97504292,0.00029544,2]
[394684616,1763880632408,-167.24964411,0.0003118,2]
[394684617,1763880632416,-262.97504292,0.00032133,2]
[394684618,1763880632426,-499.97,0.00033165,2]
[394684619,1763880632435,-1000.0,0.00033911,2]
[394684620,1763880632444,-283.413,0.00034218,38]
[394684621,1763880632453,-150.0,0.00034496,7]
[394684622,1763880632462,-1000.0,0.00034524,2]
[394684623,1763880632472,-262.97504292,0.00034722,2]
[394684624,1763880632481,-500.0,0.00034748,2]
[394684625,1763880632491,-760.77191835,0.00034793,2]
[394684626,1763880632500,-999.0,0.00034803,3]
[394684627,1763880632509,-200.0,0.00034891,2]
[394684628,1763880632518,-538.68725119,0.00034952,2]
[394684629,1763880632528,-760.77191835,0.00035045,2]
[394684630,1763880632537,-868.85,0.00035051,5]
[394684631,1763880632547,-877.46,0.00035052,5]
[394684632,1763880632555,-881.05,0.00035052,5]
[394684633,1763880632564,-879.21,0.00035052,5]
[394684634,1763880632573,-877.46,0.00035052,5]
[394684635,1763880632582,-882.08,0.00035052,5]
[394684636,1763880632590,-866.38,0.00035052,5]
[394684637,1763880632599,-866.18,0.00035052,5]
[394684638,1763880632607,-877.95,0.00035052,5]
[394684639,1763880632616,-861.01,0.00035052,5]
[394684640,1763880632625,-890.85,0.00035053,5]
[394684641,1763880632634,-867.35,0.00035055,5]
[394684642,1763880632643,-885.38,0.00035062,5]
[394684643,1763880632652,-182.04,0.00035078,2]
[394684644,1763880632660,-859.27,0.00035079,5]
[394684645,1763880632670,-889.63,0.00035124,5]
[394684646,1763880632679,-885.23,0.00035242,5]
[394684647,1763880632690,-538.68725113,0.00035502,2]
[394684648,1763880632698,-167.24964411,0.0003604,2]
[394684649,1763880632707,-479.01,0.00036041,2]
[394684650,1763880632716,-479.01,0.00036041,2]
[394684651,1763880632725,-479.01,0.00036041,2]
[394684652,1763880632735,-955.21,0.00036041,2]
[394684653,1763880632744,-538.68725113,0.00036052,2]
[394684654,1763880632754,-300.0,0.00036121,2]
[394684655,1763880632763,-833.0,0.00036121,2]
[394684656,1763880632772,-1208.6,0.00036127,2]
[394684657,1763880632781,-1211.3,0.00036178,2]
[394684660,1763880632791,-1211.3,0.00036178,2]
[394684662,1763880632800,-1521.5438367,0.00036291,2]
[394684663,1763880632810,-12938.6684626,0.00036301,2]
[394684664,1763880632819,-2282.31575505,0.00036417,3]
[394684665,1763880632828,-9539.65222472,0.00036427,2]
[394684667,1763880632844,-860.0,0.00036427,2]
[394684668,1763880632855,-4821.80248517,0.00036427,2]
[394684669,1763880632866,-1725.89008,0.00036427,2]
[394684670,1763880632878,-4990.97243434,0.00036427,2]
[394684671,1763880632898,-2354.96308394,0.00036427,2]
[394684672,1763880632980,-2406.6682062,0.00036427,2]
[394684675,1763880638036,-863.27809045,0.00036427,2]
[394684676,1763880638155,-630.42350612,0.00036427,2]
[394684677,1763880638317,-1443.45977058,0.00036427,2]
[394684680,1763880640362,-304.07128278,0.00036427,2]
[394684697,1763880644191,-82.1034717,0.00036427,2]
[394684698,1763880644200,-479.01,0.00036541,2]
[394684699,1763880644211,-538.68725113,0.00036601,2]
[394684700,1763880644221,-157.81,0.00036705,30]
[394684701,1763880644231,-1000.0,0.00036714,2]
[394684702,1763880644243,-250.0,0.00036727,2]
[394684703,1763880644252,-150.0,0.00036787,2]
[394684704,1763880644263,-150.0,0.00036787,2]
[394684705,1763880644273,-239.98063635,0.00036787,2]
[394684706,1763880644283,-168.60402235,0.00036787,2]
[394684707,1763880644292,-249.73312259,0.00036787,2]
[394684708,1763880644304,-186.11,0.00036819,2]
[394684709,1763880644313,-760.77191835,0.00036909,3]
[394684710,1763880644323,-500.0,0.00036918,8]
[394684711,1763880644332,-500.0,0.00036918,8]
[394684712,1763880644341,-863.94,0.00036918,5]
[394684713,1763880644350,-878.94,0.00036918,5]
[394684714,1763880644360,-869.41,0.00036918,5]
[394684715,1763880644369,-863.67,0.00036918,5]
[394684716,1763880644379,-868.81,0.00036919,5]
[394684717,1763880644390,-859.0,0.00036919,5]
[394684718,1763880644400,-892.14,0.00036919,5]
[394684719,1763880644410,-876.89,0.00036919,5]
[394684720,1763880644419,-870.14,0.00036919,5]
[394684721,1763880644428,-200.0,0.00036919,2]
[394684722,1763880644438,-151.0,0.00036919,15]
[394684723,1763880644447,-151.0,0.00036919,31]
[394684724,1763880644456,-151.0,0.00036919,31]
[394684725,1763880644466,-151.0,0.00036919,31]
[394684726,1763880644475,-247.879757,0.00036919,31]
[394684727,1763880644485,-215.943626,0.00036919,31]
[394684728,1763880644494,-200.0,0.00037144,10]
[394684729,1763880644504,-53.77075719,0.00037151,2]
[394684730,1763880646227,-151.0,0.00036919,31]
[394684731,1763880646236,-484.91649394,0.00037151,2]
[394684732,1763880646245,-262.97504292,0.00037311,2]
[394684733,1763880646258,-151.0,0.00037443,2]
[394684734,1763880646268,-151.0,0.00037443,2]
[394684735,1763880646277,-168.0,0.00037472,2]
[394684736,1763880646286,-881.78,0.00037557,5]
[394684737,1763880646295,-129.46440374,0.00037558,5]
[394684738,1763880646307,-370.53559626,0.00037558,5]
[394684739,1763880646317,-500.0,0.00037692,120]
[394684740,1763880646326,-538.68725113,0.00037701,2]
[394684741,1763880646335,-168.0,0.0003771,2]
[394684742,1763880646345,-500.0,0.00037808,120]
[394684743,1763880646355,-166.52,0.00037992,2]
[394684744,1763880646364,-500.0,0.00038082,120]
[394684745,1763880646374,-1000.0,0.0003809,2]
[394684746,1763880646383,-760.77191835,0.00038136,3]
[394684747,1763880646392,-700.0,0.00038146,7]
[394684748,1763880646402,-500.0,0.00038146,7]
[394684749,1763880646411,-500.0,0.00038146,7]
[394684750,1763880646421,-760.77191835,0.00038246,3]
[394684751,1763880646431,-200.0,0.00038247,5]
[394684752,1763880646440,-538.68725113,0.00038251,2]
[394684753,1763880646450,-10000.0,0.00038256,2]
[394684754,1763880646460,-786.83374292,0.00038256,2]
[394684755,1763880646470,-163.860722,0.00038256,31]
[394684756,1763880646479,-151.0,0.00038256,31]
[394684757,1763880646488,-151.0,0.00038256,31]
[394684758,1763880646498,-151.0,0.00038256,31]
[394684759,1763880646507,-151.0,0.00038256,31]
[394684760,1763880646516,-151.0,0.00038256,31]
[394684761,1763880646526,-151.0,0.00038256,31]
[394684762,1763880646536,-161.064757,0.00038256,31]
[394684763,1763880646545,-152.928092,0.00038256,31]
[394684764,1763880646556,-151.0,0.00038256,31]
[394684765,1763880646566,-151.0,0.00038256,31]
[394684766,1763880646575,-151.0,0.00038256,31]
[394684767,1763880646585,-158.302276,0.00038256,31]
[394684768,1763880646594,-161.14788307,0.00038256,13]
[394684769,1763880646603,-157.92533724,0.00038256,15]
[394684770,1763880646613,-168.0,0.00038277,2]
[394684771,1763880646622,-151.0,0.00038335,31]
[394684772,1763880646632,-151.0,0.00038335,31]
[394684773,1763880646645,-3803.85959175,0.00038336,3]
[394684774,1763880646654,-337.86223559,0.00038345,8]
[394684775,1763880646663,-92640.80679721,0.00038346,3]
[394684790,1763880876087,-72122.0,0.000165,2]
[394684811,1763881832448,-4581.0418,0.000164,2]
[394684812,1763881832459,-300.0,0.00016488,2]
[394684813,1763881832468,-1200.0,0.00016488,2]
[394684814,1763881832477,-1200.0,0.00016489,2]
[394684815,1763881832487,-405.0,0.00016489,2]
[394684816,1763881832497,-195.0,0.0001649,2]
[394684817,1763881832506,-151.0,0.0001649,2]
[394684818,1763881832515,-151.0,0.0001649,2]
[394684819,1763881832526,-151.0,0.0001649,2]
[394684820,1763881832535,-151.0,0.0001649,2]
[394684821,1763881832545,-151.0,0.0001649,2]
[394684822,1763881832554,-151.0,0.0001649,2]
[394684823,1763881832567,-151.0,0.0001649,2]
[394684824,1763881832577,-151.0,0.0001649,2]
[394684825,1763881832587,-151.0,0.0001649,2]
[394684826,1763881832596,-151.0,0.0001649,2]
[394684827,1763881832606,-151.0,0.0001649,2]
[394684828,1763881832615,-151.0,0.0001649,2]
[394684829,1763881832624,-151.0,0.0001649,2]
[394684830,1763881832634,-151.0,0.0001649,2]
[394684831,1763881832643,-151.0,0.0001649,2]
[394684832,1763881832653,-259.03096989,0.0001649,2]
[394684833,1763881832661,-176.03673408,0.0001649,2]
[394684834,1763881832670,-500.0,0.00016499,2]
[394684835,1763881832680,-500.0,0.00016599,2]
[394684836,1763881832689,-535.46566359,0.00016599,2]
[394684837,1763881832699,-500.0,0.00016599,2]
[394684838,1763881832708,-518.37547451,0.00016599,2]
[394684840,1763881832718,-500.0,0.00016599,2]
[394684842,1763881832727,-25000.0,0.000179,3]
[394684844,1763881832737,-313.0,0.00018018,2]
[394684846,1763881832746,-1114.06,0.00018019,2]
[394684848,1763881832756,-1200.0,0.00018019,2]
[394684849,1763881832765,-195.0,0.0001804,2]
[394684850,1763881832774,-769.0,0.00018108,2]
[394684851,1763881832784,-195.0,0.00018138,2]
[394684852,1763881832794,-250.0,0.00018138,2]
[394684853,1763881832803,-300.0,0.00018138,2]
[394684854,1763881832813,-195.0,0.00018138,2]
[394684855,1763881832821,-250.0,0.00018138,2]
[394684856,1763881832831,-195.0,0.00018138,2]
[394684857,1763881832840,-250.0,0.00018138,2]
[394684858,1763881832849,-162.86331447,0.00019999,2]
[394684859,1763881832858,-500.0,0.00019999,2]
[394684860,1763881832868,-247.76130854,0.00019999,2]
[394684861,1763881832877,-514.46998266,0.00019999,2]
[394684862,1763881832886,-24082.99782126,0.0002,7]
[394684863,1763881832899,-1718.947304,0.0002,7]
[394684864,1763881832914,-1971.51,0.0002,7]
[394684985,1763881838321,-2580.0,0.0002,7]
[394684986,1763881838334,-448.64483917,0.0002,7]
[394684989,1763881840629,-5439.40181,0.0002,7]
[394685003,1763881844636,-858.79,0.0002,7]
[394685004,1763881844657,-0.74749257,0.0002,7]
[394685005,1763881845705,-28140.0,0.0002,7]
[394685009,1763881846443,-2896.65654222,0.0002,7]
[394685010,1763881846454,-56325.02399939,0.0002,7]
[394685011,1763881846481,-925.7926305,0.0002,7]
[394685012,1763881846698,-1119.99999999,0.0002,7]
[394685017,1763881935878,463.52118073,0.00017,30]
[394685028,1763882187848,157.96,0.00013761,2]
[394685080,1763882966436,-157.96,0.0001529,2]
[394685081,1763882966459,-164.06876657,0.000161,2]
[394685082,1763882966482,-7677.97123343,0.000162,5]
[394685093,1763883031493,-505.6086,0.000161,2]
[394685094,1763883031504,-1200.0,0.00016199,2]
[394685095,1763883031514,-300.0,0.00016199,2]
[394685096,1763883031523,-300.0,0.00016199,2]
[394685097,1763883031533,-16609.43485301,0.000162,5]
[394685098,1763883031573,-1714.1854,0.000162,5]
[394685099,1763883031629,-565.0,0.000162,5]
[394685100,1763883031642,-12165.69966256,0.000162,5]
[394685101,1763883031652,-753.1233,0.000163,2]
[394685102,1763883031662,-534.34453477,0.00016399,2]
[394685103,1763883031671,-500.0,0.00016399,2]
[394685104,1763883031681,-502.30842797,0.00016438,2]
[394685105,1763883031691,-500.0,0.00016499,2]
[394685106,1763883031701,-500.0,0.00016499,2]
[394685107,1763883031710,-167.24964411,0.000168,2]
[394685108,1763883031720,-157.96,0.00016819,2]
[394685109,1763883031730,-1970.32,0.00016819,2]
[394685110,1763883031740,-559.61290757,0.00016873,2]
[394685111,1763883031749,-110276.88152303,0.000169,2]
[394685112,1763883031763,-246022.27620944,0.000169,2]
[394685113,1763883031772,-467.88881316,0.000169,2]
[394685114,1763883031782,-250.0,0.00017,2]
[394685115,1763883031791,-49968.00297857,0.00017,2]
[394685116,1763883031803,-7840.51389867,0.00017,2]
[394685117,1763883031822,-819.78286601,0.00017,2]
[394685118,1763883031834,-3435.68688552,0.00017,2]
[394685119,1763883031845,-2609.5598784,0.00017,2]
[394685154,1763883037521,-2025.14280923,0.00017,2]
[394685155,1763883037533,-488.66430191,0.00017,2]
[394685156,1763883037546,-1513.88525483,0.00017,2]
[394685157,1763883037689,-254.18043806,0.00017,2]
[394685158,1763883037699,-495.77450711,0.00017,2]
[394685159,1763883037711,-1221.26746359,0.00017,2]
[394685160,1763883037722,-2053.64958982,0.00017,2]
[394685161,1763883037733,-358.33485164,0.00017,2]
[394685165,1763883039627,-536.6582192,0.00017,2]
[394685166,1763883039637,-51.9060041,0.00017707,2]
[394685167,1763883039649,-330.0939959,0.00017707,2]
[394685168,1763883039658,-157.96,0.00018348,2]
[394685169,1763883039670,-1226.8076541,0.00019,2]
[394685213,1763883045067,-856.89,0.00019,2]
[394685215,1763883045713,-1081.4027635,0.00019,2]
[394685216,1763883045727,-2460.64352146,0.00019,2]
[394685217,1763883045739,-576.14167445,0.00019,2]
[394685218,1763883045749,-463.0,0.00019336,2]
[394685219,1763883045759,-229.42125447,0.00019374,2]
[394685220,1763883045770,-467.88881313,0.00019456,2]
[394685221,1763883045780,-92.90473649,0.00019497,2]
[394685222,1763883045931,-115.09526351,0.00019497,2]
[394685223,1763883045942,-1994.434216,0.00019505,2]
[394685224,1763883045951,-3363.7159799,0.00019505,2]
[394685225,1763883045961,-1626.75454059,0.00019505,2]
[394685226,1763883045977,-1458.55761861,0.00019505,2]
[394685227,1763883045988,-157.7878298,0.00019505,2]
[394685228,1763883045998,-426.78462315,0.00019852,2]
[394685229,1763883046008,-157.96,0.00019877,2]
[394685230,1763883046018,-2564.78082,0.00019999,2]
[394685231,1763883046030,-16045.4875609,0.0002,7]
[394685232,1763883046040,-1520.67237661,0.0002,5]
[394685234,1763883046050,-151.0,0.00021305,2]
[394685236,1763883046060,-226.385774,0.00021305,2]
[394685238,1763883046070,-174.714106,0.00021305,2]
[394685240,1763883046080,-157.96,0.00021405,2]
[394685242,1763883046089,-500.0,0.00021929,2]
[394685245,1763883046102,-2564.78082,0.00021999,2]
[394685247,1763883046112,-467.88881313,0.00022011,2]
[394685249,1763883046122,-207.78829228,0.00022091,2]
[394685251,1763883046132,-1594.92,0.00022191,2]
[394685253,1763883046142,-1000.0,0.00022369,2]
[394685255,1763883046151,-250.0,0.00022464,2]
[394685257,1763883046162,-167.4695574,0.00022531,2]
[394685259,1763883046172,-153.6086474,0.00022531,2]
[394685261,1763883046182,-1500.0,0.00022874,2]
[394685263,1763883046191,-157.96,0.00022934,2]
[394685266,1763883046202,-1000.0,0.00023208,2]
[394685268,1763883046211,-174.86,0.00023338,2]
[394685270,1763883046221,-858.93,0.00023368,2]
[394685272,1763883046230,-389.63,0.00023527,2]
[394685274,1763883046239,-2564.78082,0.00023999,2]
[394685276,1763883046249,-1000.0,0.00024047,2]
[394685278,1763883046258,-207.78829221,0.0002407,2]
[394685280,1763883046267,-157.96,0.00024463,2]